fUSD/lending_fUSD_20260503
["ID","MTS","AMOUNT","RATE_DAILY","PERIOD"]
[421507670,1777781446000,-500.72693313,0.00038356,8]
[421507671,1777781446000,-500.0,0.00038356,8]
[421507674,1777781446000,-500.0,0.00038356,8]
[421507675,1777781446000,-502.56123565,0.00038356,8]
[421507681,1777781446000,-500.0,0.00038356,8]
[421507677,1777781446000,-565.90647522,0.00038356,8]
[421507679,1777781446000,-500.0,0.00038356,8]
[421507676,1777781446000,-500.0,0.00038356,8]
[421507678,1777781446000,-500.56446739,0.00038356,8]
[421507686,1777781446000,-552.199996,0.00038356,8]
[421507683,1777781446000,-500.77467619,0.00038356,8]
[421507684,1777781446000,-500.0,0.00038356,8]
[421507688,1777781446000,-444.07870149,0.00038356,8]
[421507673,1777781446000,-305.35079111,0.00038356,8]
[421507690,1777781446000,-613.50220364,0.00038356,8]
[421507718,1777781446000,-500.0,0.00038356,8]
[421507692,1777781446000,-503.88107345,0.00038356,8]
[421507714,1777781446000,-500.0,0.00038356,8]
[421507700,1777781446000,-508.68872421,0.00038356,8]
[421507704,1777781446000,-198.64390454,0.00038356,8]
[421507698,1777781446000,-529.47738107,0.00038356,8]
[421507702,1777781446000,-501.60834054,0.00038356,8]
[421507706,1777781446000,-500.0,0.00038356,8]
[421507694,1777781446000,-201.25074258,0.00038356,8]
[421507696,1777781446000,-213.32832493,0.00038356,8]
[421507712,1777781446000,-500.0,0.00038356,8]
[421507711,1777781446000,-501.23094398,0.00038356,8]
[421507716,1777781446000,-169.455084,0.00038356,8]
[421507708,1777781446000,-164.78127947,0.00038356,8]
[421507807,1777781447000,-560.29029926,0.00038356,8]
[421507808,1777781447000,-500.0,0.00038356,8]
[421507806,1777781447000,-297.13619968,0.00038356,8]
[421507813,1777781447000,-500.0,0.00038356,8]
[421507814,1777781447000,-504.03106965,0.00038356,8]
[421507816,1777781447000,-164.55284383,0.00038356,8]
[421507805,1777781447000,-500.0,0.00038356,8]
[421507810,1777781447000,-204.78635403,0.00038356,8]
[421507815,1777781447000,-250.11612206,0.00038356,8]
[421507811,1777781447000,-169.48121204,0.00038356,8]
[421507809,1777781447000,-500.0,0.00038356,8]
[421507821,1777781447000,-501.52487482,0.00038356,8]
[421507818,1777781447000,-281.25788127,0.00038356,8]
[421507817,1777781447000,-500.0,0.00038356,8]
[421507819,1777781447000,-500.0,0.00038356,8]
[421507823,1777781447000,-500.0,0.00038356,8]
[421507822,1777781447000,-500.0,0.00038356,8]
[421507827,1777781447000,-524.06747191,0.00038356,8]
[421507824,1777781447000,-500.0,0.00038356,8]
[421507828,1777781447000,-224.94534146,0.00038356,8]
[421507820,1777781447000,-500.0,0.00038356,2]
[421507825,1777781447000,-547.98243145,0.00038356,8]
[421507802,1777781447000,-500.0,0.00038356,8]
[421507826,1777781447000,-500.0,0.00038356,8]
[421507812,1777781447000,-500.0,0.00038356,8]
[421507803,1777781447000,-632.13402684,0.00038356,8]
[421507788,1777781447000,-500.0,0.00038356,8]
[421507798,1777781447000,-500.0,0.00038356,8]
[421507829,1777781447000,-500.0,0.00038356,2]
[421507776,1777781447000,-500.0,0.00038356,8]
[421507777,1777781447000,-179.13063548,0.00038356,8]
[421507775,1777781447000,-500.0,0.00038356,8]
[421507779,1777781447000,-186.02924748,0.00038356,8]
[421507778,1777781447000,-154.46041542,0.00038356,8]
[421507782,1777781447000,-500.0,0.00038356,8]
[421507781,1777781447000,-500.45809016,0.00038356,8]
[421507783,1777781447000,-883.37,0.00038356,8]
[421507780,1777781447000,-204.35099649,0.00038356,8]
[421507784,1777781447000,-645.466178,0.00038356,8]
[421507785,1777781447000,-594.07305799,0.00038356,8]
[421507804,1777781447000,-500.0,0.00038356,8]
[421507787,1777781447000,-536.12132541,0.00038356,8]
[421507791,1777781447000,-179.29649954,0.00038356,8]
[421507790,1777781447000,-335.28577529,0.00038356,8]
[421507793,1777781447000,-180.45504304,0.00038356,8]
[421507786,1777781447000,-162.95496301,0.00038356,8]
[421507792,1777781447000,-501.54413428,0.00038356,8]
[421507795,1777781447000,-216.77283125,0.00038356,8]
[421507794,1777781447000,-338.7295442,0.00038356,8]
[421507796,1777781447000,-353.49566437,0.00038356,8]
[421507797,1777781447000,-159.12085255,0.00038356,8]
[421507801,1777781447000,-504.61,0.00038356,8]
[421507799,1777781447000,-509.73548719,0.00038356,8]
[421507800,1777781447000,-198.75240884,0.00038356,8]
[421507789,1777781447000,-500.0,0.00038356,8]
[421507830,1777781447000,-535.04553171,0.00038356,8]
[421507851,1777781447000,-597.9672889,0.00038492,8]
[421507832,1777781447000,-500.0,0.00038356,8]
[421507859,1777781447000,-2057.86,0.000385,30]
[421507862,1777781447000,-597.96728891,0.00038629,8]
[421507863,1777781447000,-597.9672889,0.00038629,8]
[421507866,1777781447000,-500.0,0.0003863,8]
[421507869,1777781447000,-500.0,0.0003863,8]
[421507868,1777781447000,-500.0,0.0003863,8]
[421507870,1777781447000,-502.74183784,0.0003863,8]
[421507877,1777781447000,-501.00497689,0.0003863,8]
[421507876,1777781447000,-503.47157408,0.0003863,8]
[421507875,1777781447000,-500.0,0.0003863,8]
[421507872,1777781447000,-500.0,0.0003863,8]
[421507831,1777781447000,-546.84736575,0.00038356,8]
[421507878,1777781447000,-502.17430386,0.0003863,8]
[421507874,1777781447000,-500.0,0.0003863,8]
[421507879,1777781447000,-501.89348845,0.0003863,8]
[421507873,1777781447000,-513.83920371,0.0003863,8]
[421507880,1777781447000,-526.74372773,0.0003863,8]
[421507881,1777781447000,-519.01783413,0.0003863,8]
[421507883,1777781447000,-502.49174385,0.0003863,8]
[421507884,1777781447000,-556.30569354,0.0003863,8]
[421507885,1777781447000,-503.63422087,0.0003863,8]
[421507882,1777781447000,-503.58014144,0.0003863,8]
[421507886,1777781447000,-500.0,0.0003863,8]
[421507887,1777781447000,-503.54728026,0.0003863,8]
[421507888,1777781447000,-274.97861263,0.0003863,8]
[421507861,1777781447000,-597.96728891,0.00038629,8]
[421507864,1777781447000,-597.9672889,0.00038629,8]
[421507871,1777781447000,-500.0,0.0003863,8]
[421507867,1777781447000,-500.0,0.0003863,8]
[421507860,1777781447000,-344.11900477,0.0003861,2]
[421507833,1777781447000,-579.95907359,0.00038356,2]
[421507837,1777781447000,-500.0,0.00038356,8]
[421507835,1777781447000,-500.0,0.00038356,8]
[421507834,1777781447000,-332.27230332,0.00038356,8]
[421507836,1777781447000,-501.3177264,0.00038356,2]
[421507838,1777781447000,-167.90834941,0.00038356,8]
[421507840,1777781447000,-255.73937077,0.00038356,8]
[421507841,1777781447000,-500.0,0.00038356,8]
[421507842,1777781447000,-500.0,0.00038356,8]
[421507843,1777781447000,-424.41120673,0.00038356,8]
[421507844,1777781447000,-500.0,0.00038356,8]
[421507846,1777781447000,-178.69,0.00038356,8]
[421507839,1777781447000,-500.29940038,0.00038356,2]
[421507845,1777781447000,-554.0,0.00038356,120]
[421507854,1777781447000,-2083.01,0.000385,120]
[421507865,1777781447000,-597.9672889,0.00038629,8]
[421507857,1777781447000,-2057.865,0.000385,30]
[421507856,1777781447000,-1523.588,0.000385,120]
[421507855,1777781447000,-1874.71,0.000385,120]
[421507847,1777781447000,-160.33605255,0.00038394,120]
[421507858,1777781447000,-2057.865,0.000385,120]
[421507852,1777781447000,-597.9672889,0.00038492,8]
[421507850,1777781447000,-597.96728891,0.00038492,8]
[421507848,1777781447000,-1598.0,0.00038446,11]
[421507853,1777781447000,-597.9672889,0.00038492,8]
[421507849,1777781447000,-597.96728891,0.00038492,8]
[421507929,1777781448000,-510.02821519,0.0003863,8]
[421507927,1777781448000,-443.86170274,0.0003863,8]
[421507928,1777781448000,-540.09708844,0.0003863,8]
[421507924,1777781448000,-500.0,0.0003863,8]
[421507925,1777781448000,-500.0,0.0003863,8]
[421507920,1777781448000,-556.57907768,0.0003863,8]
[421507922,1777781448000,-501.94330025,0.0003863,8]
[421507921,1777781448000,-500.0,0.0003863,8]
[421507918,1777781448000,-501.59393625,0.0003863,8]
[421507919,1777781448000,-500.0,0.0003863,8]
[421507926,1777781448000,-500.0,0.0003863,8]
[421507923,1777781448000,-500.0,0.0003863,8]
[421507930,1777781448000,-502.99119717,0.0003863,8]
[421507949,1777781448000,-501.26412325,0.0003863,8]
[421507934,1777781448000,-502.06577086,0.0003863,8]
[421507935,1777781448000,-500.0,0.0003863,8]
[421507938,1777781448000,-500.0,0.0003863,8]
[421507932,1777781448000,-500.0,0.0003863,8]
[421507936,1777781448000,-500.0,0.0003863,8]
[421507933,1777781448000,-500.0,0.0003863,8]
[421507937,1777781448000,-507.61751238,0.0003863,8]
[421507940,1777781448000,-503.58920146,0.0003863,8]
[421507939,1777781448000,-500.0,0.0003863,8]
[421507942,1777781448000,-577.80509311,0.0003863,8]
[421507947,1777781448000,-500.0,0.0003863,8]
[421507950,1777781448000,-500.0,0.0003863,8]
[421507931,1777781448000,-500.0,0.0003863,8]
[421507917,1777781448000,-502.59969763,0.0003863,8]
[421507941,1777781448000,-503.02647301,0.0003863,8]
[421507916,1777781448000,-510.88930004,0.0003863,8]
[421507889,1777781448000,-500.0,0.0003863,8]
[421507890,1777781448000,-500.0,0.0003863,8]
[421507892,1777781448000,-503.23348591,0.0003863,8]
[421507891,1777781448000,-501.82857071,0.0003863,8]
[421507894,1777781448000,-500.0,0.0003863,8]
[421507902,1777781448000,-502.15923323,0.0003863,8]
[421507893,1777781448000,-500.0,0.0003863,8]
[421507895,1777781448000,-503.21420907,0.0003863,8]
[421507896,1777781448000,-409.53377476,0.0003863,8]
[421507900,1777781448000,-649.90219752,0.0003863,8]
[421507901,1777781448000,-501.08675769,0.0003863,8]
[421507899,1777781448000,-526.91713998,0.0003863,8]
[421507915,1777781448000,-552.65455419,0.0003863,8]
[421507897,1777781448000,-500.0,0.0003863,8]
[421507903,1777781448000,-500.0,0.0003863,8]
[421507904,1777781448000,-503.80194711,0.0003863,8]
[421507914,1777781448000,-508.75334644,0.0003863,8]
[421507905,1777781448000,-500.0,0.0003863,8]
[421507906,1777781448000,-502.12161314,0.0003863,8]
[421507907,1777781448000,-500.0,0.0003863,8]
[421507912,1777781448000,-523.19072829,0.0003863,8]
[421507908,1777781448000,-500.0,0.0003863,8]
[421507913,1777781448000,-508.2711642,0.0003863,8]
[421507910,1777781448000,-500.0,0.0003863,8]
[421507911,1777781448000,-501.64821008,0.0003863,8]
[421507909,1777781448000,-551.41790567,0.0003863,8]
[421507898,1777781448000,-500.0,0.0003863,8]
[421507944,1777781448000,-503.57137926,0.0003863,8]
[421507978,1777781448000,-190.7248245,0.0003863,8]
[421507943,1777781448000,-500.65415863,0.0003863,8]
[421507977,1777781448000,-192.57941357,0.0003863,8]
[421507984,1777781448000,-452.43227742,0.0003863,8]
[421507979,1777781448000,-536.13782248,0.0003863,8]
[421507985,1777781448000,-173.45848768,0.0003863,8]
[421507976,1777781448000,-523.50311283,0.0003863,8]
[421507983,1777781448000,-279.3776583,0.0003863,8]
[421507987,1777781448000,-358.89804285,0.0003863,8]
[421507986,1777781448000,-500.0,0.0003863,8]
[421507989,1777781448000,-368.40898465,0.0003863,8]
[421507988,1777781448000,-434.13989442,0.0003863,8]
[421507993,1777781448000,-204.29858813,0.0003863,8]
[421507997,1777781448000,-500.0,0.0003863,8]
[421507982,1777781448000,-500.0,0.0003863,8]
[421507995,1777781448000,-316.35544099,0.0003863,8]
[421507994,1777781448000,-325.12299403,0.0003863,8]
[421507996,1777781448000,-469.59395427,0.0003863,8]
[421507990,1777781448000,-238.75190827,0.0003863,8]
[421507998,1777781448000,-465.9541772,0.0003863,8]
[421507999,1777781448000,-419.51075063,0.0003863,8]
[421508000,1777781448000,-256.96991378,0.0003863,8]
[421508005,1777781448000,-500.0,0.0003863,8]
[421508003,1777781448000,-156.50681763,0.0003863,8]
[421508002,1777781448000,-220.90486835,0.0003863,8]
[421508004,1777781448000,-500.0,0.0003863,8]
[421508001,1777781448000,-157.76841055,0.0003863,8]
[421507946,1777781448000,-500.0,0.0003863,8]
[421507991,1777781448000,-500.0,0.0003863,8]
[421507981,1777781448000,-493.07085156,0.0003863,8]
[421507992,1777781448000,-229.11932098,0.0003863,8]
[421507975,1777781448000,-233.44771615,0.0003863,8]
[421507980,1777781448000,-407.00191786,0.0003863,8]
[421507945,1777781448000,-500.0,0.0003863,8]
[421507951,1777781448000,-500.87166497,0.0003863,8]
[421507952,1777781448000,-500.83492583,0.0003863,8]
[421507953,1777781448000,-501.66174238,0.0003863,8]
[421507955,1777781448000,-500.0,0.0003863,8]
[421507956,1777781448000,-502.95274236,0.0003863,8]
[421507954,1777781448000,-500.0,0.0003863,8]
[421507958,1777781448000,-501.61694244,0.0003863,8]
[421507961,1777781448000,-500.0,0.0003863,8]
[421507959,1777781448000,-500.0,0.0003863,8]
[421507960,1777781448000,-409.03109311,0.0003863,8]
[421507957,1777781448000,-502.5374574,0.0003863,8]
[421507948,1777781448000,-506.57873451,0.0003863,8]
[421507962,1777781448000,-3213.9,0.0003863,8]
[421507963,1777781448000,-196.92610783,0.0003863,8]
[421507972,1777781448000,-409.8263453,0.0003863,8]
[421507970,1777781448000,-500.86884645,0.0003863,3]
[421507971,1777781448000,-500.0,0.0003863,8]
[421507973,1777781448000,-504.83052934,0.0003863,8]
[421507966,1777781448000,-556.18859054,0.0003863,8]
[421507974,1777781448000,-635.62,0.0003863,8]
[421507969,1777781448000,-319.21704443,0.0003863,8]
[421507967,1777781448000,-174.06878691,0.0003863,8]
[421507964,1777781448000,-500.0,0.0003863,8]
[421507965,1777781448000,-354.74588321,0.0003863,8]
[421507968,1777781448000,-882.37,0.0003863,8]
[421508047,1777781449000,-500.0,0.00038904,8]
[421508046,1777781449000,-500.0,0.00038904,8]
[421508045,1777781449000,-150.11943209,0.00038904,8]
[421508034,1777781449000,-500.0,0.0003863,2]
[421508043,1777781449000,-1282.29,0.000389,14]
[421508042,1777781449000,-221.32,0.000387,90]
[421508044,1777781449000,-500.43748093,0.00038904,8]
[421508040,1777781449000,-160.33605255,0.00038668,120]
[421508041,1777781449000,-766262.12088421,0.000387,2]
[421508038,1777781449000,-265.08251494,0.0003863,8]
[421508048,1777781449000,-500.0,0.00038904,8]
[421508054,1777781449000,-596.20162936,0.00038904,8]
[421508052,1777781449000,-249.01253838,0.00038904,8]
[421508057,1777781449000,-500.0,0.00038904,8]
[421508050,1777781449000,-500.0,0.00038904,8]
[421508049,1777781449000,-500.0,0.00038904,8]
[421508051,1777781449000,-500.0,0.00038904,8]
[421508055,1777781449000,-471.21843783,0.00038904,8]
[421508056,1777781449000,-382.10565124,0.00038904,8]
[421508058,1777781449000,-522.8866753,0.00038904,8]
[421508064,1777781449000,-322.85992681,0.00038904,8]
[421508066,1777781449000,-630.62942306,0.00038904,8]
[421508060,1777781449000,-500.0,0.00038904,8]
[421508062,1777781449000,-500.0,0.00038904,8]
[421508059,1777781449000,-500.0,0.00038904,8]
[421508039,1777781449000,-336.74008799,0.0003863,8]
[421508053,1777781449000,-480.75939051,0.00038904,8]
[421508037,1777781449000,-500.0,0.0003863,8]
[421508009,1777781449000,-500.0,0.0003863,8]
[421508035,1777781449000,-500.0,0.0003863,8]
[421508061,1777781449000,-294.95161162,0.00038904,8]
[421508007,1777781449000,-625.57566277,0.0003863,8]
[421508006,1777781449000,-222.3821798,0.0003863,8]
[421508008,1777781449000,-174.7785839,0.0003863,8]
[421508010,1777781449000,-520.05758599,0.0003863,8]
[421508012,1777781449000,-158.63969603,0.0003863,8]
[421508014,1777781449000,-500.0,0.0003863,8]
[421508013,1777781449000,-500.0,0.0003863,8]
[421508018,1777781449000,-633.77236756,0.0003863,8]
[421508020,1777781449000,-500.0,0.0003863,8]
[421508015,1777781449000,-500.0,0.0003863,8]
[421508017,1777781449000,-171.11551876,0.0003863,8]
[421508019,1777781449000,-504.61,0.0003863,8]
[421508016,1777781449000,-883.37,0.0003863,8]
[421508021,1777781449000,-500.0,0.0003863,8]
[421508023,1777781449000,-500.0,0.0003863,8]
[421508026,1777781449000,-562.70553811,0.0003863,8]
[421508022,1777781449000,-589.31576047,0.0003863,8]
[421508025,1777781449000,-524.71021764,0.0003863,8]
[421508024,1777781449000,-500.0,0.0003863,8]
[421508032,1777781449000,-210.64490163,0.0003863,8]
[421508029,1777781449000,-500.0,0.0003863,2]
[421508027,1777781449000,-223.163854,0.0003863,8]
[421508028,1777781449000,-346.04858627,0.0003863,8]
[421508031,1777781449000,-504.44974953,0.0003863,8]
[421508030,1777781449000,-500.0,0.0003863,8]
[421508033,1777781449000,-500.0,0.0003863,8]
[421508036,1777781449000,-500.0,0.0003863,8]
[421508063,1777781449000,-453.46251132,0.00038904,8]
[421508011,1777781449000,-278.44788193,0.0003863,8]
[421508065,1777781449000,-553.84679962,0.00038904,8]
[421508097,1777781449000,-500.0,0.00038904,8]
[421508107,1777781449000,-160.33605255,0.00038942,120]
[421508102,1777781449000,-488.38503893,0.00038904,8]
[421508105,1777781449000,-643.20140408,0.00038904,8]
[421508103,1777781449000,-500.0,0.00038904,2]
[421508099,1777781449000,-500.0,0.00038904,8]
[421508100,1777781449000,-500.0,0.00038904,2]
[421508104,1777781449000,-500.0,0.00038904,8]
[421508106,1777781449000,-301.90280812,0.00038904,8]
[421508108,1777781449000,-1055.80579058,0.00039,7]
[421508113,1777781449000,-500.0,0.00039178,8]
[421508112,1777781449000,-500.0,0.00039178,8]
[421508096,1777781449000,-500.0,0.00038904,8]
[421508115,1777781449000,-500.0,0.00039178,8]
[421508118,1777781449000,-276.84601221,0.00039178,8]
[421508109,1777781449000,-237.00045715,0.00039132,2]
[421508111,1777781449000,-500.0,0.00039178,8]
[421508116,1777781449000,-500.0,0.00039178,8]
[421508110,1777781449000,-500.0,0.00039178,8]
[421508114,1777781449000,-500.0,0.00039178,8]
[421508124,1777781449000,-265.67877453,0.00039178,8]
[421508120,1777781449000,-500.0,0.00039178,8]
[421508121,1777781449000,-500.0,0.00039178,8]
[421508122,1777781449000,-500.0,0.00039178,8]
[421508123,1777781449000,-354.51394916,0.00039178,8]
[421508125,1777781449000,-500.0,0.00039178,8]
[421508117,1777781449000,-236.39482895,0.00039178,8]
[421508101,1777781449000,-500.0,0.00038904,8]
[421508119,1777781449000,-408.70657897,0.00039178,8]
[421508094,1777781449000,-883.37,0.00038904,8]
[421508098,1777781449000,-500.0,0.00038904,8]
[421508068,1777781449000,-624.80690617,0.00038904,8]
[421508069,1777781449000,-375.42796442,0.00038904,8]
[421508070,1777781449000,-459.79340147,0.00038904,8]
[421508071,1777781449000,-500.0,0.00038904,8]
[421508076,1777781449000,-500.0,0.00038904,8]
[421508072,1777781449000,-500.0,0.00038904,8]
[421508079,1777781449000,-3213.9,0.00038904,8]
[421508081,1777781449000,-882.37,0.00038904,8]
[421508074,1777781449000,-500.0,0.00038904,8]
[421508082,1777781449000,-568.81019762,0.00038904,8]
[421508075,1777781449000,-500.0,0.00038904,8]
[421508077,1777781449000,-613.6407829,0.00038904,8]
[421508073,1777781449000,-616.20222655,0.00038904,8]
[421508067,1777781449000,-274.92155788,0.00038904,8]
[421508080,1777781449000,-500.0,0.00038904,8]
[421508078,1777781449000,-500.0,0.00038904,8]
[421508092,1777781449000,-500.0,0.00038904,8]
[421508088,1777781449000,-203.04057881,0.00038904,8]
[421508095,1777781449000,-504.61,0.00038904,8]
[421508085,1777781449000,-500.0,0.00038904,8]
[421508090,1777781449000,-500.0,0.00038904,8]
[421508087,1777781449000,-500.0,0.00038904,8]
[421508083,1777781449000,-635.62,0.00038904,8]
[421508091,1777781449000,-380.10607266,0.00038904,8]
[421508084,1777781449000,-500.0,0.00038904,8]
[421508093,1777781449000,-295.36399991,0.00038904,8]
[421508086,1777781449000,-500.0,0.00038904,8]
[421508089,1777781449000,-500.0,0.00038904,8]
[421508155,1777781450000,-500.0,0.00039452,8]
[421508153,1777781450000,-500.0,0.00039452,8]
[421508154,1777781450000,-500.0,0.00039452,8]
[421508157,1777781450000,-500.0,0.00039452,8]
[421508158,1777781450000,-500.0,0.00039452,8]
[421508159,1777781450000,-500.0,0.00039452,8]
[421508160,1777781450000,-418.40177015,0.00039452,8]
[421508161,1777781450000,-310.08770359,0.00039452,8]
[421508164,1777781450000,-882.37,0.00039452,8]
[421508156,1777781450000,-500.0,0.00039452,8]
[421508169,1777781450000,-247.24549575,0.00039452,8]
[421508163,1777781450000,-500.0,0.00039452,8]
[421508165,1777781450000,-635.62,0.00039452,8]
[421508167,1777781450000,-500.0,0.00039452,8]
[421508166,1777781450000,-351.99607109,0.00039452,8]
[421508151,1777781450000,-500.0,0.00039452,8]
[421508179,1777781450000,-215.57845004,0.00039481,30]
[421508168,1777781450000,-151.09601897,0.00039452,8]
[421508170,1777781450000,-500.0,0.00039452,8]
[421508172,1777781450000,-883.37,0.00039452,8]
[421508173,1777781450000,-504.61,0.00039452,8]
[421508171,1777781450000,-608.40445676,0.00039452,8]
[421508162,1777781450000,-3213.9,0.00039452,8]
[421508149,1777781450000,-1936.58747997,0.000394,120]
[421508143,1777781450000,-500.0,0.00039178,2]
[421508145,1777781450000,-500.0,0.00039178,2]
[421508174,1777781450000,-500.0,0.00039452,8]
[421508129,1777781450000,-635.62,0.00039178,8]
[421508127,1777781450000,-500.0,0.00039178,8]
[421508126,1777781450000,-3213.9,0.00039178,8]
[421508128,1777781450000,-882.37,0.00039178,8]
[421508130,1777781450000,-500.0,0.00039178,8]
[421508133,1777781450000,-500.0,0.00039178,8]
[421508131,1777781450000,-500.0,0.00039178,8]
[421508135,1777781450000,-500.0,0.00039178,8]
[421508136,1777781450000,-500.0,0.00039178,8]
[421508148,1777781450000,-1282.24,0.000393,14]
[421508134,1777781450000,-500.0,0.00039178,8]
[421508139,1777781450000,-500.0,0.00039178,8]
[421508138,1777781450000,-504.61,0.00039178,8]
[421508140,1777781450000,-563.75053301,0.00039178,8]
[421508152,1777781450000,-528.20890016,0.00039452,8]
[421508144,1777781450000,-280.32524379,0.00039178,8]
[421508141,1777781450000,-500.0,0.00039178,8]
[421508142,1777781450000,-500.0,0.00039178,8]
[421508147,1777781450000,-160.33605255,0.00039216,120]
[421508146,1777781450000,-535.43335617,0.00039178,8]
[421508150,1777781450000,-61137.11,0.000394,7]
[421508137,1777781450000,-883.37,0.00039178,8]
[421508132,1777781450000,-347.6046446,0.00039178,8]
[421508177,1777781450000,-500.0,0.00039452,2]
[421508178,1777781450000,-500.0,0.00039452,2]
[421508205,1777781450000,-396.95,0.00039731,7]
[421508210,1777781450000,-57640.67,0.000399,7]
[421508207,1777781450000,-963422.05107088,0.0003988,2]
[421508209,1777781450000,-157.70605661,0.00039893,7]
[421508211,1777781450000,-1642.01,0.000399,30]
[421508208,1777781450000,-14658.5666,0.00039892,30]
[421508212,1777781450000,-546.0,0.0004,120]
[421508214,1777781450000,-511.87790018,0.0004,30]
[421508224,1777781450000,-163.0,0.0004,120]
[421508213,1777781450000,-10148.488523,0.0004,7]
[421508217,1777781450000,-575.23576535,0.0004,120]
[421508215,1777781450000,-391.99656646,0.0004,120]
[421508219,1777781450000,-179.36317303,0.0004,120]
[421508216,1777781450000,-480.0,0.0004,30]
[421508223,1777781450000,-1921.17117691,0.0004,120]
[421508221,1777781450000,-153.0,0.0004,120]
[421508220,1777781450000,-384.13016449,0.0004,120]
[421508222,1777781450000,-203.91290398,0.0004,60]
[421508227,1777781450000,-16000.0,0.0004,30]
[421508226,1777781450000,-1282.29,0.0004,14]
[421508225,1777781450000,-10024.7,0.0004,120]
[421508228,1777781450000,-12624.02431003,0.0004,120]
[421508176,1777781450000,-500.0,0.00039452,8]
[421508206,1777781450000,-160.33605255,0.00039764,120]
[421508203,1777781450000,-500.0,0.00039726,2]
[421508218,1777781450000,-165.26242808,0.0004,30]
[421508202,1777781450000,-500.0,0.00039726,8]
[421508175,1777781450000,-500.0,0.00039452,8]
[421508204,1777781450000,-500.0,0.00039726,2]
[421508180,1777781450000,-160.33605255,0.0003949,120]
[421508181,1777781450000,-202.39699524,0.00039606,30]
[421508184,1777781450000,-500.0,0.00039726,8]
[421508191,1777781450000,-500.0,0.00039726,8]
[421508182,1777781450000,-248.54377943,0.00039606,30]
[421508186,1777781450000,-336.32054276,0.00039726,8]
[421508189,1777781450000,-649.34841319,0.00039726,8]
[421508188,1777781450000,-500.0,0.00039726,8]
[421508187,1777781450000,-500.0,0.00039726,8]
[421508183,1777781450000,-1666.41,0.000397,60]
[421508197,1777781450000,-198.05807491,0.00039726,8]
[421508190,1777781450000,-500.0,0.00039726,8]
[421508192,1777781450000,-3213.9,0.00039726,8]
[421508195,1777781450000,-635.62,0.00039726,8]
[421508196,1777781450000,-500.0,0.00039726,8]
[421508199,1777781450000,-500.0,0.00039726,8]
[421508194,1777781450000,-882.37,0.00039726,8]
[421508198,1777781450000,-883.37,0.00039726,8]
[421508200,1777781450000,-504.61,0.00039726,8]
[421508193,1777781450000,-500.0,0.00039726,8]
[421508185,1777781450000,-500.0,0.00039726,8]
[421508201,1777781450000,-313.1806159,0.00039726,8]
[421508268,1777781451000,-882.37,0.00040273,8]
[421508263,1777781451000,-500.0,0.00040273,8]
[421508266,1777781451000,-3213.9,0.00040273,8]
[421508265,1777781451000,-500.0,0.00040273,8]
[421508264,1777781451000,-500.0,0.00040273,8]
[421508259,1777781451000,-741.61,0.000401,30]
[421508271,1777781451000,-504.61,0.00040273,8]
[421508261,1777781451000,-500.0,0.00040273,8]
[421508269,1777781451000,-635.62,0.00040273,8]
[421508270,1777781451000,-883.37,0.00040273,8]
[421508272,1777781451000,-500.0,0.00040273,2]
[421508262,1777781451000,-500.0,0.00040273,8]
[421508284,1777781451000,-153.0,0.000405,120]
[421508285,1777781451000,-1936.58747997,0.000405,120]
[421508273,1777781451000,-500.0,0.00040273,2]
[421508275,1777781451000,-160.33605255,0.00040312,120]
[421508274,1777781451000,-61636.6,0.000403,7]